Body Name,ONS SNAC ID,Pay Date,Transaction No,Amount �,Supplier Name,Company Registration No,Department,Account Name,CIPFA Service Reporting
Swale Borough Council,29UM,02/02/2022,1194127,7814.70,ACORN MAINTENANCE SERVICES,3546898                  ,HOUSING SERVICES,Housing Renovation Grants,Not used in this Structure
Swale Borough Council,29UM,02/02/2022,1193897,1300.00,AIREY CONSULTANCY SERVICE LTD,03518844                 ,REVENUE SERVICES,Fees and Services,Central Services to the Public
Swale Borough Council,29UM,02/02/2022,1193897,1300.00,AIREY CONSULTANCY SERVICE LTD,03518844                 ,REVENUE SERVICES,Fees and Services,Housing
Swale Borough Council,29UM,02/02/2022,1193992,13183.56,APCOA PARKING (UK) LTD,2572947                  ,CAR PARKS,Private Contractors,Highway and Transport Services
Swale Borough Council,29UM,02/02/2022,1193992,19775.34,APCOA PARKING (UK) LTD,2572947                  ,CAR PARKS,Private Contractors,Highway and Transport Services
Swale Borough Council,29UM,02/02/2022,1194059,3000.00,AVOY TECHNOLOGIES LIMITED,13244786                 ,TOURISM & SPORTS DEVELOPMENT,Fees and Services,Public Health
Swale Borough Council,29UM,02/02/2022,1193856,570.00,BRETT GELLIER PYSCHOLOGY SERVICES,10317009                 ,HOUSING SERVICES,Fees and Services,Housing
Swale Borough Council,29UM,02/02/2022,1193865,640.00,BRETT GELLIER PYSCHOLOGY SERVICES,10317009                 ,HOUSING SERVICES,Fees and Services,Housing
Swale Borough Council,29UM,02/02/2022,1193848,1275.00,CAMPBELL REITH HILL LLP,OC300082                 ,ECONOMIC DEVELOPMENT,Capitalised Fees And Charges,Not used in this Structure
Swale Borough Council,29UM,02/02/2022,1193849,3571.43,CAMPBELL REITH HILL LLP,OC300082                 ,ECONOMIC DEVELOPMENT,Capitalised Fees And Charges,Not used in this Structure
Swale Borough Council,29UM,02/02/2022,1194063,3921.53,CHILDREN & FAMILIES CHILDRENS CTRS LTD,08953232                 ,CLIMATE AND ECOLOGICAL EMERGENCY,Fees and Services,Environmental and Regulatory Services
Swale Borough Council,29UM,02/02/2022,1194108,3332.11,CHILDREN & FAMILIES CHILDRENS CTRS LTD,08953232                 ,CLIMATE AND ECOLOGICAL EMERGENCY,Fees and Services,Environmental and Regulatory Services
Swale Borough Council,29UM,02/02/2022,1193857,33357.50,CITIZENS ADVICE BUREAU IN SWALE,5052691                  ,COMMUNITY SAFETY,Voluntary Organisations Grants,Central Services to the Public
Swale Borough Council,29UM,02/02/2022,1194064,250.00,COASTAL BODY REPAIRS LTD,                         ,SERVICE DELIVERY,Maintenance - Grounds,Cultural and Related Services
Swale Borough Council,29UM,02/02/2022,1194065,537.38,COASTAL BODY REPAIRS LTD,                         ,SERVICE DELIVERY,Maintenance - Grounds,Cultural and Related Services
Swale Borough Council,29UM,02/02/2022,1193847,165066.57,COGNITION LAND & WATER LTD,05487694                 ,ECONOMIC DEVELOPMENT,Construction,Not used in this Structure
Swale Borough Council,29UM,02/02/2022,1193685,7154.83,COUNTIES & CAPITAL CONSULTING LTD,13054490                 ,RAINBOW HOMES,Capitalised Fees And Charges,Not used in this Structure
Swale Borough Council,29UM,02/02/2022,1193892,449.00,CREDITSAFE BUSINESS SOLUTIONS LTD,03836192                 ,FINANCIAL SERVICES,Fees and Services,Internal Trading Cost Centres
Swale Borough Council,29UM,02/02/2022,1194124,906.30,DAYTRAD LIMITED,7654373                  ,HOUSING SERVICES,Housing Renovation Grants,Not used in this Structure
Swale Borough Council,29UM,02/02/2022,1194125,6285.39,DAYTRAD LIMITED,7654373                  ,HOUSING SERVICES,Housing Renovation Grants,Not used in this Structure
Swale Borough Council,29UM,02/02/2022,1193964,2900.00,DOLPHIN STAIRLIFTS (KENT),04181846                 ,HOUSING SERVICES,Staying Put small repairs (contractors),Housing
Swale Borough Council,29UM,02/02/2022,1194120,2460.55,DOLPHIN STAIRLIFTS (KENT),04181846                 ,HOUSING SERVICES,Housing Renovation Grants,Not used in this Structure
Swale Borough Council,29UM,02/02/2022,1194123,1140.79,DOLPHIN STAIRLIFTS (KENT),04181846                 ,HOUSING SERVICES,Housing Renovation Grants,Not used in this Structure
Swale Borough Council,29UM,02/02/2022,1193930,276.92,EDF ENERGY CUSTOMERS PLC,                         ,COMMUNITY SAFETY,Electricity,Cultural and Related Services
Swale Borough Council,29UM,02/02/2022,1194126,10000.67,EVOLVE AMS UK LTD,08819378                 ,HOUSING SERVICES,Housing Renovation Grants,Not used in this Structure
Swale Borough Council,29UM,02/02/2022,1193916,2800.00,FAVERSHAM SWIMMING POOL MNGMT COMM LTD,                         ,COMMUNITY SAFETY,Grants & Subscriptions,Central Services to the Public
Swale Borough Council,29UM,02/02/2022,1193587,1240.00,G2V RECRUITMENT GROUP LIMITED,08067630                 ,PLANNING SERVICES,Agency/Contract Staff,Internal Trading Cost Centres
Swale Borough Council,29UM,02/02/2022,1193835,1480.00,G2V RECRUITMENT GROUP LIMITED,08067630                 ,PLANNING SERVICES,Agency/Contract Staff,Internal Trading Cost Centres
Swale Borough Council,29UM,02/02/2022,1194112,6613.33,GREGORY (KENT) LTD,08056242                 ,HOUSING SERVICES,Housing Renovation Grants,Not used in this Structure
Swale Borough Council,29UM,02/02/2022,1194116,8125.24,GREGORY (KENT) LTD,08056242                 ,HOUSING SERVICES,Housing Renovation Grants,Not used in this Structure
Swale Borough Council,29UM,02/02/2022,1193869,450.00,HARSCA PROPERTIES,                         ,HOUSING SERVICES,Homelessness  Prevention Services,Housing
Swale Borough Council,29UM,02/02/2022,1194224,4214.64,HEXAGON HOUSING (DT),                         ,HOUSING SERVICES,Homelessness  Prevention Services,Housing
Swale Borough Council,29UM,02/02/2022,1194118,6014.00,HIGHER ELEVATION LTD,4078005                  ,HOUSING SERVICES,Housing Renovation Grants,Not used in this Structure
Swale Borough Council,29UM,02/02/2022,1194119,14396.48,HIGHER ELEVATION LTD,4078005                  ,HOUSING SERVICES,Housing Renovation Grants,Not used in this Structure
Swale Borough Council,29UM,02/02/2022,1194121,2527.30,HIGHER ELEVATION LTD,4078005                  ,HOUSING SERVICES,Housing Renovation Grants,Not used in this Structure
Swale Borough Council,29UM,02/02/2022,1194072,1169.00,INTEGRITY PRINT LTD,GB927217815              ,CAR PARKS,External Permit Printing,Highway and Transport Services
Swale Borough Council,29UM,02/02/2022,1193861,4650.00,IVY LEGAL LIMITED,8408137                  ,PLANNING SERVICES,Legal Fees,Planning and Development Services
Swale Borough Council,29UM,02/02/2022,1194110,831.60,J & D SYSTEMS,                         ,HOUSING SERVICES,Housing Renovation Grants,Not used in this Structure
Swale Borough Council,29UM,02/02/2022,1194111,1860.27,J & D SYSTEMS,                         ,HOUSING SERVICES,Housing Renovation Grants,Not used in this Structure
Swale Borough Council,29UM,02/02/2022,1194113,730.82,J & D SYSTEMS,                         ,HOUSING SERVICES,Housing Renovation Grants,Not used in this Structure
Swale Borough Council,29UM,02/02/2022,1194114,992.75,J & D SYSTEMS,                         ,HOUSING SERVICES,Housing Renovation Grants,Not used in this Structure
Swale Borough Council,29UM,02/02/2022,1191544,1037.83,KENT COUNTY COUNCIL,                         ,ECONOMIC DEVELOPMENT,Fees and Services,Planning and Development Services
Swale Borough Council,29UM,02/02/2022,1193682,26500.00,KENT COUNTY COUNCIL,                         ,HOUSING SERVICES,Fees and Services,Housing
Swale Borough Council,29UM,02/02/2022,1193819,1500.00,KENT COUNTY COUNCIL,                         ,COMMUNITY SAFETY,Fees and Services,Environmental and Regulatory Services
Swale Borough Council,29UM,02/02/2022,1193919,747.50,KIRKMAN & JOURDAIN LTD,01766240                 ,SERVICE DELIVERY,Maintenance - Grounds,Cultural and Related Services
Swale Borough Council,29UM,02/02/2022,1194056,3200.00,KIRKMAN & JOURDAIN LTD,01766240                 ,LEISURE & OPEN SPACES,Maintenance - Grounds,Environmental and Regulatory Services
Swale Borough Council,29UM,02/02/2022,1193812,3781.26,KONICA MINOLTA BUSINESS SOLUTIONS (UK) LTD,1132885                  ,PROPERTY SERVICES,Equipment Purchase,Internal Trading Cost Centres
Swale Borough Council,29UM,02/02/2022,1193812,374.76,KONICA MINOLTA BUSINESS SOLUTIONS (UK) LTD,1132885                  ,MKS ICT,Equipment Maintenance,Holding Codes
Swale Borough Council,29UM,02/02/2022,1193968,800.00,LEMAR LIMITED,04350292                 ,TOURISM & SPORTS DEVELOPMENT,Private Contractors - CIS,Public Health
Swale Borough Council,29UM,02/02/2022,1193968,412.50,LEMAR LIMITED,04350292                 ,TOURISM & SPORTS DEVELOPMENT,Private Contractors - CIS,Public Health
Swale Borough Council,29UM,02/02/2022,1193359,75500.00,LINK PROPERTY GROUP,                         ,HOUSING SERVICES,NL (Nightly Lets) - Homelessness Landlord Payments,Housing
Swale Borough Council,29UM,02/02/2022,1193838,1043.00,MAGEES GUESTHOUSE,                         ,HOUSING SERVICES,B & B - Homelessness Landlord Payments,Housing
Swale Borough Council,29UM,02/02/2022,1193963,1447.92,MAIDSTONE BOROUGH COUNCIL,                         ,REVENUE SERVICES,Fees and Services,Housing
Swale Borough Council,29UM,02/02/2022,1193653,214.00,MEDWAY ACCOMMODATION LIMITED,                         ,HOUSING SERVICES,B & B - Homelessness Landlord Payments,Housing
Swale Borough Council,29UM,02/02/2022,1193653,829.25,MEDWAY ACCOMMODATION LIMITED,                         ,HOUSING SERVICES,B & B - Homelessness Landlord Payments,Housing
Swale Borough Council,29UM,02/02/2022,1194231,500.00,REDACTED PERSONAL INFORMATION,                         ,REVENUE SERVICES,Payments in Year,Ledger/Suspense Codes
Swale Borough Council,29UM,02/02/2022,1194243,500.00,REDACTED PERSONAL INFORMATION,                         ,REVENUE SERVICES,Payments in Year,Ledger/Suspense Codes
Swale Borough Council,29UM,02/02/2022,1194245,500.00,REDACTED PERSONAL INFORMATION,                         ,REVENUE SERVICES,Payments in Year,Ledger/Suspense Codes
Swale Borough Council,29UM,02/02/2022,1194235,500.00,REDACTED PERSONAL INFORMATION,                         ,REVENUE SERVICES,Payments in Year,Ledger/Suspense Codes
Swale Borough Council,29UM,02/02/2022,1194227,500.00,REDACTED PERSONAL INFORMATION,                         ,REVENUE SERVICES,Payments in Year,Ledger/Suspense Codes
Swale Borough Council,29UM,02/02/2022,1194228,500.00,REDACTED PERSONAL INFORMATION,                         ,REVENUE SERVICES,Payments in Year,Ledger/Suspense Codes
Swale Borough Council,29UM,02/02/2022,1194240,500.00,REDACTED PERSONAL INFORMATION,                         ,REVENUE SERVICES,Payments in Year,Ledger/Suspense Codes
Swale Borough Council,29UM,02/02/2022,1194250,500.00,REDACTED PERSONAL INFORMATION,                         ,REVENUE SERVICES,Payments in Year,Ledger/Suspense Codes
Swale Borough Council,29UM,02/02/2022,1193899,4066.00,MOAT HOMES LTD,                         ,HOUSING SERVICES,Homelessness  Prevention Services,Housing
Swale Borough Council,29UM,02/02/2022,1193633,314.75,MONITOR CLEANING SERVICES LTD,02526388                 ,CONTRACTS,Equipment Purchase,Environmental and Regulatory Services
Swale Borough Council,29UM,02/02/2022,1194232,500.00,REDACTED PERSONAL INFORMATION,                         ,REVENUE SERVICES,Payments in Year,Ledger/Suspense Codes
Swale Borough Council,29UM,02/02/2022,1194226,500.00,REDACTED PERSONAL INFORMATION,                         ,REVENUE SERVICES,Payments in Year,Ledger/Suspense Codes
Swale Borough Council,29UM,02/02/2022,1194236,500.00,REDACTED PERSONAL INFORMATION,                         ,REVENUE SERVICES,Payments in Year,Ledger/Suspense Codes
Swale Borough Council,29UM,02/02/2022,1194234,500.00,REDACTED PERSONAL INFORMATION,                         ,REVENUE SERVICES,Payments in Year,Ledger/Suspense Codes
Swale Borough Council,29UM,02/02/2022,1194239,500.00,REDACTED PERSONAL INFORMATION,                         ,REVENUE SERVICES,Payments in Year,Ledger/Suspense Codes
Swale Borough Council,29UM,02/02/2022,1194230,500.00,REDACTED PERSONAL INFORMATION,                         ,REVENUE SERVICES,Payments in Year,Ledger/Suspense Codes
Swale Borough Council,29UM,02/02/2022,1194249,500.00,REDACTED PERSONAL INFORMATION,                         ,REVENUE SERVICES,Payments in Year,Ledger/Suspense Codes
Swale Borough Council,29UM,02/02/2022,1194241,500.00,REDACTED PERSONAL INFORMATION,                         ,REVENUE SERVICES,Payments in Year,Ledger/Suspense Codes
Swale Borough Council,29UM,02/02/2022,1194225,500.00,REDACTED PERSONAL INFORMATION,                         ,REVENUE SERVICES,Payments in Year,Ledger/Suspense Codes
Swale Borough Council,29UM,02/02/2022,1194244,500.00,REDACTED PERSONAL INFORMATION,                         ,REVENUE SERVICES,Payments in Year,Ledger/Suspense Codes
Swale Borough Council,29UM,02/02/2022,1194233,500.00,REDACTED PERSONAL INFORMATION,                         ,REVENUE SERVICES,Payments in Year,Ledger/Suspense Codes
Swale Borough Council,29UM,02/02/2022,1194246,500.00,REDACTED PERSONAL INFORMATION,                         ,REVENUE SERVICES,Payments in Year,Ledger/Suspense Codes
Swale Borough Council,29UM,02/02/2022,1194237,500.00,REDACTED PERSONAL INFORMATION,                         ,REVENUE SERVICES,Payments in Year,Ledger/Suspense Codes
Swale Borough Council,29UM,02/02/2022,1194247,500.00,REDACTED PERSONAL INFORMATION,                         ,REVENUE SERVICES,Payments in Year,Ledger/Suspense Codes
Swale Borough Council,29UM,02/02/2022,1194248,500.00,REDACTED PERSONAL INFORMATION,                         ,REVENUE SERVICES,Payments in Year,Ledger/Suspense Codes
Swale Borough Council,29UM,02/02/2022,1194238,500.00,REDACTED PERSONAL INFORMATION,                         ,REVENUE SERVICES,Payments in Year,Ledger/Suspense Codes
Swale Borough Council,29UM,02/02/2022,1194229,500.00,REDACTED PERSONAL INFORMATION,                         ,REVENUE SERVICES,Payments in Year,Ledger/Suspense Codes
Swale Borough Council,29UM,02/02/2022,1193913,1000.00,NEWINGTON CRICKET CLUB,                         ,COMMUNITY SAFETY,Grants & Subscriptions,Cultural and Related Services
Swale Borough Council,29UM,02/02/2022,1194053,340.00,REDACTED PERSONAL INFORMATION,                         ,COMMUNITY SAFETY,Maintenance - Grounds,Environmental and Regulatory Services
Swale Borough Council,29UM,02/02/2022,1193937,363.25,NPOWER,                         ,CONTRACTS,Electricity,Environmental and Regulatory Services
Swale Borough Council,29UM,02/02/2022,1194074,1190.00,REDACTED PERSONAL INFORMATION,                         ,HOUSING SERVICES,Homelessness  Prevention Services,Housing
Swale Borough Council,29UM,02/02/2022,1193809,910.00,OPTIVO,09100835                 ,HOUSING SERVICES,Optivo - Homelessness Landlord Payments,Housing
Swale Borough Council,29UM,02/02/2022,1193826,479.96,OPTIVO,                         ,HOUSING SERVICES,Homelessness  Prevention Services,Housing
Swale Borough Council,29UM,02/02/2022,1193898,18000.00,POLICY IN PRACTICE LTD,07042993                 ,REVENUE SERVICES,Fees and Services,Housing
Swale Borough Council,29UM,02/02/2022,1193977,1467.03,ROYAL MAIL GROUP LTD,4138203                  ,PROPERTY SERVICES,Postage,Holding Codes
Swale Borough Council,29UM,02/02/2022,1193978,1349.18,ROYAL MAIL GROUP LTD,4138203                  ,PROPERTY SERVICES,Postage,Holding Codes
Swale Borough Council,29UM,02/02/2022,1193837,1314.77,SOUTH EAST WATER,2679874                  ,HOUSING SERVICES,Homelessness  Prevention Services,Housing
Swale Borough Council,29UM,02/02/2022,1193825,1180.32,SOUTHERN WATER SERVICES LIMITED,2366670                  ,HOUSING SERVICES,Homelessness  Prevention Services,Housing
Swale Borough Council,29UM,02/02/2022,1194061,1617.20,SOUTHERN WATER SERVICES LIMITED,2366670                  ,HOUSING SERVICES,Homelessness  Prevention Services,Housing
Swale Borough Council,29UM,02/02/2022,1193564,437.50,STORAGE KING,                         ,HOUSING SERVICES,Storage Expenses,Housing
Swale Borough Council,29UM,02/02/2022,1193918,550.00,SWALE GLOVES AMATEUR BOXING CLUB,                         ,COMMUNITY SAFETY,Grants & Subscriptions,Central Services to the Public
Swale Borough Council,29UM,02/02/2022,1193917,350.00,SWALE YOUTH DEVELOPMENT FUND,                         ,COMMUNITY SAFETY,Grants & Subscriptions,Central Services to the Public
Swale Borough Council,29UM,02/02/2022,1194028,1687.50,THE COTTON BUNTING COMPANY,5594565                  ,TOURISM & SPORTS DEVELOPMENT,Fees and Services,Public Health
Swale Borough Council,29UM,02/02/2022,1193920,720.00,THE LETTINGS CENTRE,                         ,HOUSING SERVICES,Homelessness  Prevention Services,Housing
Swale Borough Council,29UM,02/02/2022,1194012,390.00,TIKSPAC UK LTD,09238130                 ,ENVIRONMENTAL RESPONSE TEAM,Equipment Purchase,Environmental and Regulatory Services
Swale Borough Council,29UM,02/02/2022,1194115,865.02,TRINITY CONSTRUCTION SERVICES LTD,2709226                  ,HOUSING SERVICES,Housing Renovation Grants,Not used in this Structure
Swale Borough Council,29UM,02/02/2022,1193690,1000.00,TUNBRIDGE WELLS BOROUGH COUNCIL,                         ,MKS ENVIRONMENTAL SERVICES,Consultancy/Specialist Advice,Environmental and Regulatory Services
Swale Borough Council,29UM,02/02/2022,1194242,585.00,REDACTED PERSONAL INFORMATION,                         ,HOUSING SERVICES,B & B - Homelessness Landlord Payments,Housing
Swale Borough Council,29UM,02/02/2022,1194117,272.15,WALLER ASSOCIATES LIMITED,4027244                  ,HOUSING SERVICES,Housing Renovation Grants,Not used in this Structure
Swale Borough Council,29UM,02/02/2022,1193295,426.67,WHISTL UK LIMITED,04417047                 ,REVENUE SERVICES,Postage,Central Services to the Public
Swale Borough Council,29UM,02/02/2022,1193295,213.33,WHISTL UK LIMITED,04417047                 ,REVENUE SERVICES,Postage,Housing
Swale Borough Council,29UM,02/02/2022,1193295,23.39,WHISTL UK LIMITED,04417047                 ,PROPERTY SERVICES,Postage,Holding Codes
Swale Borough Council,29UM,02/02/2022,1193295,103.82,WHISTL UK LIMITED,04417047                 ,DEMOCRATIC & ELECTORAL SERVICES,Postage,Central Services to the Public
Swale Borough Council,29UM,02/02/2022,1193459,379.65,WHISTL UK LIMITED,04417047                 ,REVENUE SERVICES,Postage,Central Services to the Public
Swale Borough Council,29UM,02/02/2022,1193459,189.82,WHISTL UK LIMITED,04417047                 ,REVENUE SERVICES,Postage,Housing
Swale Borough Council,29UM,02/02/2022,1193459,26.50,WHISTL UK LIMITED,04417047                 ,PROPERTY SERVICES,Postage,Holding Codes
Swale Borough Council,29UM,02/02/2022,1193459,199.88,WHISTL UK LIMITED,04417047                 ,DEMOCRATIC & ELECTORAL SERVICES,Postage,Central Services to the Public
Swale Borough Council,29UM,02/02/2022,1194083,489.00,WILLOW TREE HOME SOLUTIONS LTD,                         ,HOUSING SERVICES,Staying Put small repairs (contractors),Housing
Swale Borough Council,29UM,02/02/2022,1194084,540.00,WILLOW TREE HOME SOLUTIONS LTD,                         ,HOUSING SERVICES,Staying Put small repairs (contractors),Housing
Swale Borough Council,29UM,02/02/2022,1194109,4750.00,WILLOW TREE HOME SOLUTIONS LTD,                         ,HOUSING SERVICES,Housing Renovation Grants,Not used in this Structure
Swale Borough Council,29UM,02/02/2022,1194122,742.18,WILLOW TREE HOME SOLUTIONS LTD,                         ,HOUSING SERVICES,Housing Renovation Grants,Not used in this Structure
Swale Borough Council,29UM,02/02/2022,1194077,2548.00,WYNSDALE WASTE MANAGEMENT LTD,07837119                 ,HOUSING SERVICES,Staying Put small repairs (contractors),Housing
Swale Borough Council,29UM,09/02/2022,1194279,10977.89,ACORN MAINTENANCE SERVICES,3546898                  ,HOUSING SERVICES,Housing Renovation Grants,Not used in this Structure
Swale Borough Council,29UM,09/02/2022,1194281,6131.73,ACORN MAINTENANCE SERVICES,3546898                  ,HOUSING SERVICES,Housing Renovation Grants,Not used in this Structure
Swale Borough Council,29UM,09/02/2022,1194217,650.00,ASPIRE SCHOOL,                         ,COMMUNITY SAFETY,Grants & Subscriptions,Central Services to the Public
Swale Borough Council,29UM,09/02/2022,1194275,6189.70,ASTRAL LTD,2430111                  ,HOUSING SERVICES,Housing Renovation Grants,Not used in this Structure
Swale Borough Council,29UM,09/02/2022,1194189,2700.00,DOLPHIN STAIRLIFTS (KENT),04181846                 ,HOUSING SERVICES,Staying Put small repairs (contractors),Housing
Swale Borough Council,29UM,09/02/2022,1194278,1233.58,EVOLVE AMS UK LTD,08819378                 ,HOUSING SERVICES,Housing Renovation Grants,Not used in this Structure
Swale Borough Council,29UM,09/02/2022,1194206,2014.69,FUSE RAIL LTD,08886910                 ,SERVICE DELIVERY,Private Contractors - CIS,Environmental and Regulatory Services
Swale Borough Council,29UM,09/02/2022,1194277,6329.00,GREGORY (KENT) LTD,08056242                 ,HOUSING SERVICES,Housing Renovation Grants,Not used in this Structure
Swale Borough Council,29UM,09/02/2022,1194195,575.00,HBINFO LTD,5779046                  ,REVENUE SERVICES,Fees and Services,Housing
Swale Borough Council,29UM,09/02/2022,1194276,5042.85,HUBBARD & HOUGHTON CONSTRUCTION LTD,                         ,HOUSING SERVICES,Housing Renovation Grants,Not used in this Structure
Swale Borough Council,29UM,09/02/2022,1194220,465.90,IPS (UK) LTD,009971838                ,CAR PARKS,Commission Paid,Highway and Transport Services
Swale Borough Council,29UM,09/02/2022,1193644,1277.53,KONICA MINOLTA BUSINESS SOLUTIONS (UK) LTD,1132885                  ,PROPERTY SERVICES,Equipment Rental,Internal Trading Cost Centres
Swale Borough Council,29UM,09/02/2022,1194207,2600.00,LAND USE CONSULTANTS LTD,02549296                 ,PLANNING SERVICES,Fees and Services,Planning and Development Services
Swale Borough Council,29UM,09/02/2022,1194208,2600.00,LAND USE CONSULTANTS LTD,02549296                 ,PLANNING SERVICES,Fees and Services,Planning and Development Services
Swale Borough Council,29UM,09/02/2022,1193405,26391.00,LESSHOMELESS LIMITED,08458851                 ,HOUSING SERVICES,NL (Nightly Lets) - Homelessness Landlord Payments,Housing
Swale Borough Council,29UM,09/02/2022,1194209,88043.79,MAIDSTONE BOROUGH COUNCIL,                         ,CONTRACTS,Private Contractors,Environmental and Regulatory Services
Swale Borough Council,29UM,09/02/2022,1194209,233596.21,MAIDSTONE BOROUGH COUNCIL,                         ,CONTRACTS,Private Contractors,Environmental and Regulatory Services
Swale Borough Council,29UM,09/02/2022,1194057,15643.83,MATRIX SCM LTD,2227962                  ,HUMAN RESOURCES,Agency/Contract Staff,Internal Trading Cost Centres
Swale Borough Council,29UM,09/02/2022,1193890,196.00,MEDWAY ACCOMMODATION LIMITED,                         ,HOUSING SERVICES,B & B - Homelessness Landlord Payments,Housing
Swale Borough Council,29UM,09/02/2022,1193890,759.50,MEDWAY ACCOMMODATION LIMITED,                         ,HOUSING SERVICES,B & B - Homelessness Landlord Payments,Housing
Swale Borough Council,29UM,09/02/2022,1194103,288.80,MEDWAY ACCOMMODATION LIMITED,                         ,HOUSING SERVICES,B & B - Homelessness Landlord Payments,Housing
Swale Borough Council,29UM,09/02/2022,1194103,1119.10,MEDWAY ACCOMMODATION LIMITED,                         ,HOUSING SERVICES,B & B - Homelessness Landlord Payments,Housing
Swale Borough Council,29UM,09/02/2022,1194139,435.00,METRIC GROUP LTD,2560839                  ,CAR PARKS,Fees - Licence,Highway and Transport Services
Swale Borough Council,29UM,09/02/2022,1194180,2574.12,METRIC GROUP LTD,2560839                  ,CAR PARKS,Equipment Maintenance,Highway and Transport Services
Swale Borough Council,29UM,09/02/2022,1194080,10000.00,MONDREM CIC,10304589                 ,PLANNING SERVICES,Consultancy/Specialist Advice,Planning and Development Services
Swale Borough Council,29UM,09/02/2022,1194150,1700.69,REDACTED PERSONAL INFORMATION,                         ,HOUSING SERVICES,Homelessness  Prevention Services,Housing
Swale Borough Council,29UM,09/02/2022,1193987,7200.00,REDACTED PERSONAL INFORMATION,                         ,HOUSING SERVICES,LIS - Landlord Payments (new in 2018),Housing
Swale Borough Council,29UM,09/02/2022,1193988,660.00,REDACTED PERSONAL INFORMATION,                         ,HOUSING SERVICES,RDS - Landlord claim on Bond Scheme,Housing
Swale Borough Council,29UM,09/02/2022,1193808,85270.00,OPTIVO,09100835                 ,HOUSING SERVICES,Optivo - Homelessness Landlord Payments,Housing
Swale Borough Council,29UM,09/02/2022,1194152,311.53,PREMIER PAPER GROUP LTD,                         ,PROPERTY SERVICES,Paper,Internal Trading Cost Centres
Swale Borough Council,29UM,09/02/2022,1194155,278.70,PREMIER PAPER GROUP LTD,                         ,PROPERTY SERVICES,Paper,Internal Trading Cost Centres
Swale Borough Council,29UM,09/02/2022,1194223,865.00,RED DOG PUBLIC RELATIONS,                         ,TOURISM & SPORTS DEVELOPMENT,Fees and Services,Public Health
Swale Borough Council,29UM,09/02/2022,1194156,519.23,ROYAL MAIL GROUP LTD,4138203                  ,DEMOCRATIC & ELECTORAL SERVICES,Postage,Central Services to the Public
Swale Borough Council,29UM,09/02/2022,1194218,750.00,SHEERNESS COUNTY YOUTH CLUB,                         ,COMMUNITY SAFETY,Grants & Subscriptions,Central Services to the Public
Swale Borough Council,29UM,09/02/2022,1194201,1240.00,SINGH LETTINGS LTD,                         ,HOUSING SERVICES,NL (Nightly Lets) - Homelessness Landlord Payments,Housing
Swale Borough Council,29UM,09/02/2022,1194215,700.00,SWALE MEDIA ARTS CENTRE,                         ,COMMUNITY SAFETY,Grants & Subscriptions,Central Services to the Public
Swale Borough Council,29UM,09/02/2022,1193905,1738.00,THE OYSTER PARTNERSHIP,05020374                 ,PLANNING SERVICES,Agency/Contract Staff,Planning and Development Services
Swale Borough Council,29UM,09/02/2022,1194081,1738.00,THE OYSTER PARTNERSHIP,05020374                 ,PLANNING SERVICES,Agency/Contract Staff,Planning and Development Services
Swale Borough Council,29UM,09/02/2022,1193726,66000.00,THE RIVERSIDE HOUSING GROUP LTD,                         ,HOUSING SERVICES,Fees and Services,Housing
Swale Borough Council,29UM,09/02/2022,1194216,1200.00,THURSDAY DANCE CLUB,                         ,COMMUNITY SAFETY,Grants & Subscriptions,Central Services to the Public
Swale Borough Council,29UM,09/02/2022,1193906,1707.50,TRAFALGAR TAVERN LTD,07999329                 ,HOUSING SERVICES,B & B - Homelessness Landlord Payments,Housing
Swale Borough Council,29UM,09/02/2022,1193881,-30.31,UNISON,                         ,HUMAN RESOURCES,Payroll - Unison Deductions Admin Charge,Corporate & Democratic Core
Swale Borough Council,29UM,09/02/2022,1193671,623.52,WHISTL UK LIMITED,04417047                 ,REVENUE SERVICES,Postage,Central Services to the Public
Swale Borough Council,29UM,09/02/2022,1193671,311.75,WHISTL UK LIMITED,04417047                 ,REVENUE SERVICES,Postage,Housing
Swale Borough Council,29UM,09/02/2022,1193671,170.26,WHISTL UK LIMITED,04417047                 ,PROPERTY SERVICES,Postage,Holding Codes
Swale Borough Council,29UM,09/02/2022,1193671,873.85,WHISTL UK LIMITED,04417047                 ,DEMOCRATIC & ELECTORAL SERVICES,Postage,Central Services to the Public
Swale Borough Council,29UM,09/02/2022,1193889,398.54,WHISTL UK LIMITED,04417047                 ,REVENUE SERVICES,Postage,Central Services to the Public
Swale Borough Council,29UM,09/02/2022,1193889,199.27,WHISTL UK LIMITED,04417047                 ,REVENUE SERVICES,Postage,Housing
Swale Borough Council,29UM,09/02/2022,1193889,16.21,WHISTL UK LIMITED,04417047                 ,PROPERTY SERVICES,Postage,Holding Codes
Swale Borough Council,29UM,09/02/2022,1193889,133.93,WHISTL UK LIMITED,04417047                 ,DEMOCRATIC & ELECTORAL SERVICES,Postage,Central Services to the Public
Swale Borough Council,29UM,09/02/2022,1194197,250.00,WILLOW TREE HOME SOLUTIONS LTD,                         ,HOUSING SERVICES,Staying Put small repairs (contractors),Housing
Swale Borough Council,29UM,09/02/2022,1194198,368.00,WILLOW TREE HOME SOLUTIONS LTD,                         ,HOUSING SERVICES,Staying Put small repairs (contractors),Housing
Swale Borough Council,29UM,09/02/2022,1194280,7117.82,WILLOW TREE HOME SOLUTIONS LTD,                         ,HOUSING SERVICES,Housing Renovation Grants,Not used in this Structure
Swale Borough Council,29UM,09/02/2022,1194182,250.00,WYNSDALE WASTE MANAGEMENT LTD,07837119                 ,HOUSING SERVICES,Staying Put small repairs (contractors),Housing
Swale Borough Council,29UM,09/02/2022,1194183,775.00,WYNSDALE WASTE MANAGEMENT LTD,07837119                 ,HOUSING SERVICES,Staying Put small repairs (contractors),Housing
Swale Borough Council,29UM,09/02/2022,1194184,450.00,WYNSDALE WASTE MANAGEMENT LTD,07837119                 ,HOUSING SERVICES,Staying Put small repairs (contractors),Housing
Swale Borough Council,29UM,09/02/2022,1194185,455.00,WYNSDALE WASTE MANAGEMENT LTD,07837119                 ,HOUSING SERVICES,Staying Put small repairs (contractors),Housing
Swale Borough Council,29UM,09/02/2022,1194186,320.00,WYNSDALE WASTE MANAGEMENT LTD,07837119                 ,HOUSING SERVICES,Staying Put small repairs (contractors),Housing
Swale Borough Council,29UM,09/02/2022,1194187,575.00,WYNSDALE WASTE MANAGEMENT LTD,07837119                 ,HOUSING SERVICES,Staying Put small repairs (contractors),Housing
Swale Borough Council,29UM,09/02/2022,1194188,725.00,WYNSDALE WASTE MANAGEMENT LTD,07837119                 ,HOUSING SERVICES,Staying Put small repairs (contractors),Housing
Swale Borough Council,29UM,10/02/2022,1194284,500.00,REDACTED PERSONAL INFORMATION,                         ,REVENUE SERVICES,Payments in Year,Ledger/Suspense Codes
Swale Borough Council,29UM,10/02/2022,1194283,500.00,REDACTED PERSONAL INFORMATION,                         ,REVENUE SERVICES,Payments in Year,Ledger/Suspense Codes
Swale Borough Council,29UM,14/02/2022,1194499,123961.97,BLENWOOD LTD,4383277                  ,LEISURE & OPEN SPACES,Grounds Maint Suspense,Cultural and Related Services
Swale Borough Council,29UM,14/02/2022,4500823,-123961.97,BLENWOOD LTD,4383277                  ,LEISURE & OPEN SPACES,Grounds Maint Suspense,Cultural and Related Services
Swale Borough Council,29UM,16/02/2022,1194267,2250.00,1ST CHOICE HOUSING SOLUTIONS,11515125                 ,HOUSING SERVICES,Homelessness  Prevention Services,Housing
Swale Borough Council,29UM,16/02/2022,1194256,860.00,AC LETTINGS LTD,                         ,HOUSING SERVICES,Homelessness  Prevention Services,Housing
Swale Borough Council,29UM,16/02/2022,1194320,288.00,ACORN MAINTENANCE SERVICES,3546898                  ,HOUSING SERVICES,Staying Put small repairs (contractors),Housing
Swale Borough Council,29UM,16/02/2022,1194136,250.00,ALCIUM SOFTWARE LIMITED,4157769                  ,TOURISM & SPORTS DEVELOPMENT,Fees and Services,Cultural and Related Services
Swale Borough Council,29UM,16/02/2022,1194351,9210.00,ALCIUM SOFTWARE LIMITED,4157769                  ,ECONOMIC DEVELOPMENT,Fees and Services,Planning and Development Services
Swale Borough Council,29UM,16/02/2022,1194200,5342.80,REDACTED PERSONAL INFORMATION,                         ,MKS LEGAL SERVICES,Agency/Contract Staff,Internal Trading Cost Centres
Swale Borough Council,29UM,16/02/2022,1194386,3120.00,ELITE ARBORISTS LTD,09486869                 ,LEISURE & OPEN SPACES,Arboriculture (incl. care of trees) contract,Cultural and Related Services
Swale Borough Council,29UM,16/02/2022,1194357,6005.83,EMERALD CONSERVATION,                         ,LEISURE & OPEN SPACES,Maintenance - Grounds,Environmental and Regulatory Services
Swale Borough Council,29UM,16/02/2022,1194286,1420.00,G2V RECRUITMENT GROUP LIMITED,08067630                 ,PLANNING SERVICES,Agency/Contract Staff,Internal Trading Cost Centres
Swale Borough Council,29UM,16/02/2022,1194287,2380.00,G2V RECRUITMENT GROUP LIMITED,08067630                 ,PLANNING SERVICES,Agency/Contract Staff,Planning and Development Services
Swale Borough Council,29UM,16/02/2022,1194104,1192.25,GLASDON U.K.LIMITED,2160576                  ,LEISURE & OPEN SPACES,Equipment Purchase,Cultural and Related Services
Swale Borough Council,29UM,16/02/2022,1194254,3900.00,REDACTED PERSONAL INFORMATION,                         ,HOUSING SERVICES,LIS - Landlord Payments (new in 2018),Housing
Swale Borough Council,29UM,16/02/2022,1194260,3918.72,LAMBORN & HILL LTD,06967391                 ,HOUSING SERVICES,Homelessness  Prevention Services,Housing
Swale Borough Council,29UM,16/02/2022,1194153,2437.00,LEXISNEXIS UK,2746621                  ,MKS LEGAL SERVICES,"Books, Journals & e - resources",Internal Trading Cost Centres
Swale Borough Council,29UM,16/02/2022,1194383,939798.00,MAIDSTONE BOROUGH COUNCIL - DT,                         ,FINANCIAL SERVICES,Tariff to Gvt,Taxation and Non-Specific Grant Income
Swale Borough Council,29UM,16/02/2022,1194171,19794.09,MONITOR CLEANING SERVICES LTD,02526388                 ,CONTRACTS,Private Contractors,Environmental and Regulatory Services
Swale Borough Council,29UM,16/02/2022,1194364,6322.08,REDACTED PERSONAL INFORMATION,                         ,HOUSING SERVICES,Homelessness  Prevention Services,Housing
Swale Borough Council,29UM,16/02/2022,1194294,425.00,OYSTER PRESS,                         ,TOURISM & SPORTS DEVELOPMENT,Fees and Services,Public Health
Swale Borough Council,29UM,16/02/2022,1194174,32011.00,PARAMOUNT INDEPENDENT PROPERTY SERVICES,                         ,HOUSING SERVICES,NL (Nightly Lets) - Homelessness Landlord Payments,Housing
Swale Borough Council,29UM,16/02/2022,1194175,29576.00,PARAMOUNT INDEPENDENT PROPERTY SERVICES,                         ,HOUSING SERVICES,NL (Nightly Lets) - Homelessness Landlord Payments,Housing
Swale Borough Council,29UM,16/02/2022,1194176,29385.00,PARAMOUNT INDEPENDENT PROPERTY SERVICES,                         ,HOUSING SERVICES,NL (Nightly Lets) - Homelessness Landlord Payments,Housing
Swale Borough Council,29UM,16/02/2022,1194179,6206.00,PARAMOUNT INDEPENDENT PROPERTY SERVICES,                         ,HOUSING SERVICES,NL (Nightly Lets) - Homelessness Landlord Payments,Housing
Swale Borough Council,29UM,16/02/2022,1194068,984.80,QUANTEC,                         ,PROPERTY SERVICES,Service Contracts,Corporate & Democratic Core
Swale Borough Council,29UM,16/02/2022,1194169,375.00,RURAL PLANNING LTD,4426249                  ,PLANNING SERVICES,Fees and Services,Planning and Development Services
Swale Borough Council,29UM,16/02/2022,1194367,329.89,SAFE FENCE LIMITED,10147984                 ,TOURISM & SPORTS DEVELOPMENT,Fees and Services,Public Health
Swale Borough Council,29UM,16/02/2022,1194318,1624.33,THE ALEXANDER CENTRE,07281634                 ,COMMISSIONING & CUSTOMER CONTACT,Rent,Internal Trading Cost Centres
Swale Borough Council,29UM,16/02/2022,1194319,598.00,THE ALEXANDER CENTRE,07281634                 ,COMMISSIONING & CUSTOMER CONTACT,Rent,Internal Trading Cost Centres
Swale Borough Council,29UM,16/02/2022,1194316,803.20,THE OYSTER PARTNERSHIP,05020374                 ,MKS LEGAL SERVICES,Agency/Contract Staff,Internal Trading Cost Centres
Swale Borough Council,29UM,16/02/2022,1194310,314.00,THOMSON REUTERS,1679046                  ,DEMOCRATIC & ELECTORAL SERVICES,"Books, Journals & e - resources",Central Services to the Public
Swale Borough Council,29UM,16/02/2022,1194261,585.00,REDACTED PERSONAL INFORMATION,                         ,HOUSING SERVICES,Homelessness  Prevention Services,Housing
Swale Borough Council,29UM,16/02/2022,1194107,895.82,WHISTL UK LIMITED,04417047                 ,REVENUE SERVICES,Postage,Central Services to the Public
Swale Borough Council,29UM,16/02/2022,1194107,447.91,WHISTL UK LIMITED,04417047                 ,REVENUE SERVICES,Postage,Housing
Swale Borough Council,29UM,16/02/2022,1194107,237.05,WHISTL UK LIMITED,04417047                 ,PROPERTY SERVICES,Postage,Holding Codes
Swale Borough Council,29UM,16/02/2022,1194107,239.26,WHISTL UK LIMITED,04417047                 ,DEMOCRATIC & ELECTORAL SERVICES,Postage,Central Services to the Public
Swale Borough Council,29UM,16/02/2022,1194343,2000.00,WHITE HORSE ECOLOGY,                         ,LEISURE & OPEN SPACES,Fees and Services,Cultural and Related Services
Swale Borough Council,29UM,16/02/2022,1194293,288.00,WILLOW TREE HOME SOLUTIONS LTD,                         ,HOUSING SERVICES,Staying Put small repairs (contractors),Housing
Swale Borough Council,29UM,16/02/2022,1194332,331.67,WILLOW TREE HOME SOLUTIONS LTD,                         ,HOUSING SERVICES,Staying Put small repairs (contractors),Housing
Swale Borough Council,29UM,16/02/2022,1194336,1400.00,WILLOW TREE HOME SOLUTIONS LTD,                         ,HOUSING SERVICES,Staying Put small repairs (contractors),Housing
Swale Borough Council,29UM,16/02/2022,1194394,1705.44,WORLDPAY (DT),07316500                 ,REVENUE SERVICES,Commission Paid,Central Services to the Public
Swale Borough Council,29UM,16/02/2022,1194394,9.70,WORLDPAY (DT),07316500                 ,REVENUE SERVICES,Commission Paid,Housing
Swale Borough Council,29UM,16/02/2022,1194394,29.07,WORLDPAY (DT),07316500                 ,EXCHEQUER,Commission Paid,Internal Trading Cost Centres
Swale Borough Council,29UM,16/02/2022,1194394,193.99,WORLDPAY (DT),07316500                 ,EXCHEQUER,Commission Paid,Internal Trading Cost Centres
Swale Borough Council,29UM,16/02/2022,1194394,5.72,WORLDPAY (DT),07316500                 ,EXCHEQUER,Commission Paid,Internal Trading Cost Centres
Swale Borough Council,29UM,16/02/2022,1194395,2459.54,WORLDPAY (DT),07316500                 ,REVENUE SERVICES,Commission Paid,Central Services to the Public
Swale Borough Council,29UM,16/02/2022,1194395,74.97,WORLDPAY (DT),07316500                 ,REVENUE SERVICES,Commission Paid,Housing
Swale Borough Council,29UM,16/02/2022,1194395,464.93,WORLDPAY (DT),07316500                 ,EXCHEQUER,Commission Paid,Internal Trading Cost Centres
Swale Borough Council,29UM,16/02/2022,1194395,3.06,WORLDPAY (DT),07316500                 ,EXCHEQUER,Commission Paid,Internal Trading Cost Centres
Swale Borough Council,29UM,16/02/2022,1194345,435.00,XTREME GRAPHICS LIMITED,04309330                 ,TOURISM & SPORTS DEVELOPMENT,Fees and Services,Public Health
Swale Borough Council,29UM,23/02/2022,1194468,1950.00,A.C MACKLIN FENCING,10311550                 ,LEISURE & OPEN SPACES,Maintenance - Grounds,Cultural and Related Services
Swale Borough Council,29UM,23/02/2022,1194468,1101.00,A.C MACKLIN FENCING,10311550                 ,LEISURE & OPEN SPACES,Maintenance - Grounds,Cultural and Related Services
Swale Borough Council,29UM,23/02/2022,1194329,750.00,ABBEY NEIGHBOURHOOD ASSOCIATION,                         ,COMMUNITY SAFETY,Grants & Subscriptions,Central Services to the Public
Swale Borough Council,29UM,23/02/2022,1194469,500.00,ABBEY PHYSIC COMMUNITY GARDEN,                         ,COMMUNITY SAFETY,Grants & Subscriptions,Central Services to the Public
Swale Borough Council,29UM,23/02/2022,1194474,1000.00,ABBEY PHYSIC COMMUNITY GARDEN,                         ,COMMUNITY SAFETY,Grants & Subscriptions,Cultural and Related Services
Swale Borough Council,29UM,23/02/2022,1194362,270.00,ACCA,                         ,FINANCIAL SERVICES,Grants & Subscriptions,Internal Trading Cost Centres
Swale Borough Council,29UM,23/02/2022,1194515,737.05,ACORN MAINTENANCE SERVICES,3546898                  ,HOUSING SERVICES,Housing Renovation Grants,Not used in this Structure
Swale Borough Council,29UM,23/02/2022,1194524,1347.33,ACORN MAINTENANCE SERVICES,3546898                  ,HOUSING SERVICES,Housing Renovation Grants,Not used in this Structure
Swale Borough Council,29UM,23/02/2022,1194510,2667.00,ALL THE EXTRAS LIMITED,09062780                 ,ECONOMIC DEVELOPMENT,Payments in Year,Ledger/Suspense Codes
Swale Borough Council,29UM,23/02/2022,1194507,2667.00,ANEWU BEAUTY LIMITED,                         ,ECONOMIC DEVELOPMENT,Payments in Year,Ledger/Suspense Codes
Swale Borough Council,29UM,23/02/2022,1194516,1161.59,ASCENDIT LIFTS LTD,3493530                  ,HOUSING SERVICES,Housing Renovation Grants,Not used in this Structure
Swale Borough Council,29UM,23/02/2022,1194517,2846.10,ASTRAL LTD,2430111                  ,HOUSING SERVICES,Housing Renovation Grants,Not used in this Structure
Swale Borough Council,29UM,23/02/2022,1194558,1278.01,BARCHESTER INVESTMENTS LTD (DT),12853356                 ,HOUSING SERVICES,B & B - Homelessness Landlord Payments,Housing
Swale Borough Council,29UM,23/02/2022,1194559,1396.17,BARCHESTER INVESTMENTS LTD (DT),12853356                 ,HOUSING SERVICES,B & B - Homelessness Landlord Payments,Housing
Swale Borough Council,29UM,23/02/2022,1194560,1396.17,BARCHESTER INVESTMENTS LTD (DT),12853356                 ,HOUSING SERVICES,B & B - Homelessness Landlord Payments,Housing
Swale Borough Council,29UM,23/02/2022,1194561,1396.17,BARCHESTER INVESTMENTS LTD (DT),12853356                 ,HOUSING SERVICES,B & B - Homelessness Landlord Payments,Housing
Swale Borough Council,29UM,23/02/2022,1194575,500.00,REDACTED PERSONAL INFORMATION,                         ,REVENUE SERVICES,Payments in Year,Ledger/Suspense Codes
Swale Borough Council,29UM,23/02/2022,1194349,877.50,BLENWOOD LTD,4383277                  ,LEISURE & OPEN SPACES,Tree Maintenance,Cultural and Related Services
Swale Borough Council,29UM,23/02/2022,1194350,1680.00,BLENWOOD LTD,4383277                  ,LEISURE & OPEN SPACES,Tree Maintenance,Cultural and Related Services
Swale Borough Council,29UM,23/02/2022,1194366,739.20,BLENWOOD LTD,4383277                  ,LEISURE & OPEN SPACES,Maintenance - Grounds,Cultural and Related Services
Swale Borough Council,29UM,23/02/2022,1194555,1302.32,BROADWAY ESTATES,                         ,REVENUE SERVICES,KCC Relocation Scheme - Expenditure,Housing
Swale Borough Council,29UM,23/02/2022,1194331,552.20,CAMPBELL ASSOCIATES,                         ,ENVIRONMENTAL RESPONSE TEAM,Equipment Maintenance,Internal Trading Cost Centres
Swale Borough Council,29UM,23/02/2022,1194264,13799.00,CORNERSTONE PROPERTY GROUP,GB233222746              ,HOUSING SERVICES,NL (Nightly Lets) - Homelessness Landlord Payments,Housing
Swale Borough Council,29UM,23/02/2022,1194467,7154.83,COUNTIES & CAPITAL CONSULTING LTD,13054490                 ,RAINBOW HOMES,Capitalised Fees And Charges,Not used in this Structure
Swale Borough Council,29UM,23/02/2022,1194518,4453.43,DAYTRAD LIMITED,7654373                  ,HOUSING SERVICES,Housing Renovation Grants,Not used in this Structure
Swale Borough Council,29UM,23/02/2022,1194520,8669.43,DAYTRAD LIMITED,7654373                  ,HOUSING SERVICES,Housing Renovation Grants,Not used in this Structure
Swale Borough Council,29UM,23/02/2022,1194525,10213.91,EVOLVE AMS UK LTD,08819378                 ,HOUSING SERVICES,Housing Renovation Grants,Not used in this Structure
Swale Borough Council,29UM,23/02/2022,1194508,2667.00,FASHEVENTS&HIRE LTD,                         ,ECONOMIC DEVELOPMENT,Payments in Year,Ledger/Suspense Codes
Swale Borough Council,29UM,23/02/2022,1194330,300.00,FAVERSHAM COMM CHRISTMAS LIGHTS,                         ,COMMUNITY SAFETY,Grants & Subscriptions,Central Services to the Public
Swale Borough Council,29UM,23/02/2022,1194475,988.00,FAVERSHAM SWIMMING POOL MNGMT COMM LTD,                         ,COMMUNITY SAFETY,Grants & Subscriptions,Cultural and Related Services
Swale Borough Council,29UM,23/02/2022,1194344,704.92,GAZEBOSHOP,5879541                  ,COMMUNITY SAFETY,Fees and Services,Planning and Development Services
Swale Borough Council,29UM,23/02/2022,1194486,1095.94,GORDON ELLIS & CO,                         ,TOURISM & SPORTS DEVELOPMENT,Fees and Services,Public Health
Swale Borough Council,29UM,23/02/2022,1194514,8360.02,GREGORY (KENT) LTD,08056242                 ,HOUSING SERVICES,Housing Renovation Grants,Not used in this Structure
Swale Borough Council,29UM,23/02/2022,1194522,748.66,GREGORY (KENT) LTD,08056242                 ,HOUSING SERVICES,Housing Renovation Grants,Not used in this Structure
Swale Borough Council,29UM,23/02/2022,1194523,2519.68,HIGHER ELEVATION LTD,4078005                  ,HOUSING SERVICES,Housing Renovation Grants,Not used in this Structure
Swale Borough Council,29UM,23/02/2022,1194503,2667.00,HOPDAEMON BREWERY CO LTD,                         ,ECONOMIC DEVELOPMENT,Payments in Year,Ledger/Suspense Codes
Swale Borough Council,29UM,23/02/2022,1194511,1200.00,HUCKLEBERRY WOODS LTD,                         ,ECONOMIC DEVELOPMENT,Payments in Year,Ledger/Suspense Codes
Swale Borough Council,29UM,23/02/2022,1194490,500.00,ISLE OF SHEPPEY UNI OF THE 3RD AGE (U3A),                         ,COMMUNITY SAFETY,Grants & Subscriptions,Central Services to the Public
Swale Borough Council,29UM,23/02/2022,1194193,1240.00,REDACTED PERSONAL INFORMATION,                         ,HOUSING SERVICES,NL (Nightly Lets) - Homelessness Landlord Payments,Housing
Swale Borough Council,29UM,23/02/2022,1194170,1147.00,KENT ACCOMMODATION LTD,12900140                 ,HOUSING SERVICES,NL (Nightly Lets) - Homelessness Landlord Payments,Housing
Swale Borough Council,29UM,23/02/2022,1194489,423.89,KENT COUNTY COUNCIL (KCS),                         ,MKS ENVIRONMENTAL SERVICES,Electricity,Environmental and Regulatory Services
Swale Borough Council,29UM,23/02/2022,1194571,500.00,REDACTED PERSONAL INFORMATION,                         ,REVENUE SERVICES,Payments in Year,Ledger/Suspense Codes
Swale Borough Council,29UM,23/02/2022,1194368,4961.00,LAMBERT SMITH HAMPTON GROUP,2521225                  ,PLANNING SERVICES,Fees and Services,Planning and Development Services
Swale Borough Council,29UM,23/02/2022,1194479,1000.00,LEYSDOWN VILLAGE HALL COMMITTEE,                         ,ECONOMY & COMMUNITIES,Communities Fund Expenditure,Ledger/Suspense Codes
Swale Borough Council,29UM,23/02/2022,1194172,9822.00,LINK PROPERTY GROUP,                         ,HOUSING SERVICES,NL (Nightly Lets) - Homelessness Landlord Payments,Housing
Swale Borough Council,29UM,23/02/2022,1194173,73636.00,LINK PROPERTY GROUP,                         ,HOUSING SERVICES,NL (Nightly Lets) - Homelessness Landlord Payments,Housing
Swale Borough Council,29UM,23/02/2022,1194052,448.00,MAGEES GUESTHOUSE,                         ,HOUSING SERVICES,B & B - Homelessness Landlord Payments,Housing
Swale Borough Council,29UM,23/02/2022,1194066,913.00,MAGEES GUESTHOUSE,                         ,HOUSING SERVICES,B & B - Homelessness Landlord Payments,Housing
Swale Borough Council,29UM,23/02/2022,1194262,504.00,MAGEES GUESTHOUSE,                         ,HOUSING SERVICES,B & B - Homelessness Landlord Payments,Housing
Swale Borough Council,29UM,23/02/2022,1194263,364.00,MAGEES GUESTHOUSE,                         ,HOUSING SERVICES,B & B - Homelessness Landlord Payments,Housing
Swale Borough Council,29UM,23/02/2022,1194289,896.00,MAGEES GUESTHOUSE,                         ,HOUSING SERVICES,B & B - Homelessness Landlord Payments,Housing
Swale Borough Council,29UM,23/02/2022,1194363,6431.51,MAIDSTONE BOROUGH COUNCIL,                         ,CAR PARKS,Fees & Chgs Vatable,Highway and Transport Services
Swale Borough Council,29UM,23/02/2022,1194430,1581.65,MAIDSTONE BOROUGH COUNCIL,                         ,CAR PARKS,Fees & Chgs Vatable,Highway and Transport Services
Swale Borough Council,29UM,23/02/2022,1194485,4795.00,MAYLOW CONSTRUCTION LTD,                         ,LEISURE & OPEN SPACES,Equipment Maintenance,Cultural and Related Services
Swale Borough Council,29UM,23/02/2022,1194485,1626.00,MAYLOW CONSTRUCTION LTD,                         ,LEISURE & OPEN SPACES,Maintenance - Grounds,Cultural and Related Services
Swale Borough Council,29UM,23/02/2022,1194255,1357.80,MEDWAY ACCOMMODATION LIMITED,                         ,HOUSING SERVICES,B & B - Homelessness Landlord Payments,Housing
Swale Borough Council,29UM,23/02/2022,1194255,350.40,MEDWAY ACCOMMODATION LIMITED,                         ,HOUSING SERVICES,B & B - Homelessness Landlord Payments,Housing
Swale Borough Council,29UM,23/02/2022,1194557,1800.00,MERAKI ESTATES LIMITED (DT),                         ,HOUSING SERVICES,B & B - Homelessness Landlord Payments,Housing
Swale Borough Council,29UM,23/02/2022,1194473,1000.00,MILTON CREEK TRUST,                         ,COMMUNITY SAFETY,Grants & Subscriptions,Cultural and Related Services
Swale Borough Council,29UM,23/02/2022,1194582,500.00,REDACTED PERSONAL INFORMATION,                         ,REVENUE SERVICES,Payments in Year,Ledger/Suspense Codes
Swale Borough Council,29UM,23/02/2022,1194580,500.00,REDACTED PERSONAL INFORMATION,                         ,REVENUE SERVICES,Payments in Year,Ledger/Suspense Codes
Swale Borough Council,29UM,23/02/2022,1194583,500.00,REDACTED PERSONAL INFORMATION,                         ,REVENUE SERVICES,Payments in Year,Ledger/Suspense Codes
Swale Borough Council,29UM,23/02/2022,1194581,500.00,REDACTED PERSONAL INFORMATION,                         ,REVENUE SERVICES,Payments in Year,Ledger/Suspense Codes
Swale Borough Council,29UM,23/02/2022,1194568,500.00,REDACTED PERSONAL INFORMATION,                         ,REVENUE SERVICES,Payments in Year,Ledger/Suspense Codes
Swale Borough Council,29UM,23/02/2022,1194566,500.00,REDACTED PERSONAL INFORMATION,                         ,REVENUE SERVICES,Payments in Year,Ledger/Suspense Codes
Swale Borough Council,29UM,23/02/2022,1194565,500.00,REDACTED PERSONAL INFORMATION,                         ,REVENUE SERVICES,Payments in Year,Ledger/Suspense Codes
Swale Borough Council,29UM,23/02/2022,1194564,500.00,REDACTED PERSONAL INFORMATION,                         ,REVENUE SERVICES,Payments in Year,Ledger/Suspense Codes
Swale Borough Council,29UM,23/02/2022,1194578,500.00,REDACTED PERSONAL INFORMATION,                         ,REVENUE SERVICES,Payments in Year,Ledger/Suspense Codes
Swale Borough Council,29UM,23/02/2022,1194569,500.00,REDACTED PERSONAL INFORMATION,                         ,REVENUE SERVICES,Payments in Year,Ledger/Suspense Codes
Swale Borough Council,29UM,23/02/2022,1194574,500.00,REDACTED PERSONAL INFORMATION,                         ,REVENUE SERVICES,Payments in Year,Ledger/Suspense Codes
Swale Borough Council,29UM,23/02/2022,1194584,500.00,REDACTED PERSONAL INFORMATION,                         ,REVENUE SERVICES,Payments in Year,Ledger/Suspense Codes
Swale Borough Council,29UM,23/02/2022,1194573,500.00,REDACTED PERSONAL INFORMATION,                         ,REVENUE SERVICES,Payments in Year,Ledger/Suspense Codes
Swale Borough Council,29UM,23/02/2022,1194567,500.00,REDACTED PERSONAL INFORMATION,                         ,REVENUE SERVICES,Payments in Year,Ledger/Suspense Codes
Swale Borough Council,29UM,23/02/2022,1194562,600.00,REDACTED PERSONAL INFORMATION,                         ,HOUSING SERVICES,B & B - Homelessness Landlord Payments,Housing
Swale Borough Council,29UM,23/02/2022,1194579,500.00,REDACTED PERSONAL INFORMATION,                         ,REVENUE SERVICES,Payments in Year,Ledger/Suspense Codes
Swale Borough Council,29UM,23/02/2022,1194577,500.00,REDACTED PERSONAL INFORMATION,                         ,REVENUE SERVICES,Payments in Year,Ledger/Suspense Codes
Swale Borough Council,29UM,23/02/2022,1194576,500.00,REDACTED PERSONAL INFORMATION,                         ,REVENUE SERVICES,Payments in Year,Ledger/Suspense Codes
Swale Borough Council,29UM,23/02/2022,1194585,500.00,REDACTED PERSONAL INFORMATION,                         ,REVENUE SERVICES,Payments in Year,Ledger/Suspense Codes
Swale Borough Council,29UM,23/02/2022,1194572,500.00,REDACTED PERSONAL INFORMATION,                         ,REVENUE SERVICES,Payments in Year,Ledger/Suspense Codes
Swale Borough Council,29UM,23/02/2022,1194509,2667.00,NATURALLY U SALON,                         ,ECONOMIC DEVELOPMENT,Payments in Year,Ledger/Suspense Codes
Swale Borough Council,29UM,23/02/2022,1194361,255.12,NETWORK MERCHANTS LIMITED (DT),3295353                  ,MULTISTOREY CAR PARK,Commission Paid,Highway and Transport Services
Swale Borough Council,29UM,23/02/2022,1194496,1269.00,NOTICEBOARD COMPANY (UK) LIMITED,04448932                 ,TOURISM & SPORTS DEVELOPMENT,Fees and Services,Public Health
Swale Borough Council,29UM,23/02/2022,1194348,494.00,OBSIDIAN SECURITY LTD,                         ,PROPERTY SERVICES,Equipment Purchase,Corporate & Democratic Core
Swale Borough Council,29UM,23/02/2022,1194471,650.00,OSPRINGE PARISH COUNCIL,                         ,ECONOMY & COMMUNITIES,Communities Fund Expenditure,Ledger/Suspense Codes
Swale Borough Council,29UM,23/02/2022,1194563,500.00,REDACTED PERSONAL INFORMATION,                         ,REVENUE SERVICES,Payments in Year,Ledger/Suspense Codes
Swale Borough Council,29UM,23/02/2022,1194204,716.00,PREMIER INN (ATOS) DT,                         ,HOUSING SERVICES,B & B - Homelessness Landlord Payments,Housing
Swale Borough Council,29UM,23/02/2022,1193929,250.00,QUANTEC,                         ,CONTRACTS,Service Contracts,Environmental and Regulatory Services
Swale Borough Council,29UM,23/02/2022,1194470,400.00,QUEENBOROUGH TOWN COUNCIL,                         ,COMMUNITY SAFETY,Grants & Subscriptions,Central Services to the Public
Swale Borough Council,29UM,23/02/2022,1194586,200.00,RBS PURCHASING CARD (DT) - ARGOS,                         ,COMMUNITY SAFETY,Fees and Services,Public Health
Swale Borough Council,29UM,23/02/2022,1194586,400.00,RBS PURCHASING CARD (DT) - MORRISONS,                         ,COMMUNITY SAFETY,Fees and Services,Public Health
Swale Borough Council,29UM,23/02/2022,1194586,100.00,RBS PURCHASING CARD (DT) - TESCO,                         ,COMMUNITY SAFETY,Fees and Services,Public Health
Swale Borough Council,29UM,23/02/2022,1194586,100.00,RBS PURCHASING CARD (DT) - TESCO,                         ,COMMUNITY SAFETY,Fees and Services,Public Health
Swale Borough Council,29UM,23/02/2022,1194586,100.00,RBS PURCHASING CARD (DT) - TESCO,                         ,COMMUNITY SAFETY,Fees and Services,Public Health
Swale Borough Council,29UM,23/02/2022,1194586,100.00,RBS PURCHASING CARD (DT) - TESCO,                         ,COMMUNITY SAFETY,Fees and Services,Public Health
Swale Borough Council,29UM,23/02/2022,1194586,100.00,RBS PURCHASING CARD (DT) - TESCO,                         ,COMMUNITY SAFETY,Fees and Services,Public Health
Swale Borough Council,29UM,23/02/2022,1194586,100.00,RBS PURCHASING CARD (DT) - TESCO,                         ,COMMUNITY SAFETY,Fees and Services,Public Health
Swale Borough Council,29UM,23/02/2022,1194586,300.00,RBS PURCHASING CARD (DT) - ASDA,                         ,COMMUNITY SAFETY,Fees and Services,Public Health
Swale Borough Council,29UM,23/02/2022,1194586,300.00,RBS PURCHASING CARD (DT) - ASDA,                         ,COMMUNITY SAFETY,Fees and Services,Public Health
Swale Borough Council,29UM,23/02/2022,1194587,20.83,RBS PURCHASING CARD (DT) - AMAZON,,MKS ICT,Computer Equipment & Materials,Internal Trading Cost Centres
Swale Borough Council,29UM,23/02/2022,1194587,107.48,RBS PURCHASING CARD (DT) - AMAZON,,MKS ICT,Computer Equipment & Materials,Internal Trading Cost Centres
Swale Borough Council,29UM,23/02/2022,1194588,40.75,RBS PURCHASING CARD (DT) - FACEBOOK IRELAND LTD,,COMMUNICATION SERVICES,Advertising & Promotion,Internal Trading Cost Centres
Swale Borough Council,29UM,23/02/2022,1194589,44.00,RBS PURCHASING CARD (DT) - HANDY PRINTS,,ENVIRONMENTAL RESPONSE TEAM,Equipment Purchase,Internal Trading Cost Centres
Swale Borough Council,29UM,23/02/2022,1194590,131.66,RBS PURCHASING CARD (DT) - AMAZON,,PROPERTY SERVICES,Equipment Purchase,Corporate & Democratic Core
Swale Borough Council,29UM,23/02/2022,1194590,26.64,RBS PURCHASING CARD (DT) - AMAZON,,PROPERTY SERVICES,Equipment Purchase,Corporate & Democratic Core
Swale Borough Council,29UM,23/02/2022,1194593,17.56,RBS PURCHASING CARD (DT) - GOOGLE CLOUD,,COMMUNICATION SERVICES,Computer Equipment & Materials,Internal Trading Cost Centres
Swale Borough Council,29UM,23/02/2022,1194593,13.19,RBS PURCHASING CARD (DT) - GOOGLE CLOUD,,COMMUNICATION SERVICES,Computer Equipment & Materials,Internal Trading Cost Centres
Swale Borough Council,29UM,23/02/2022,1194595,5.76,RBS PURCHASING CARD (DT) - AMAZON,,MKS LEGAL SERVICES,Equipment Purchase,Internal Trading Cost Centres
Swale Borough Council,29UM,23/02/2022,1194595,8.32,RBS PURCHASING CARD (DT) - AMAZON,,MKS LEGAL SERVICES,Equipment Purchase,Internal Trading Cost Centres
Swale Borough Council,29UM,23/02/2022,1194595,39.90,RBS PURCHASING CARD (DT) - GAILS FLORIST,,MKS LEGAL SERVICES,Fees and Services,Internal Trading Cost Centres
Swale Borough Council,29UM,23/02/2022,1194596,200.00,RBS PURCHASING CARD (DT) - TESCO,                         ,COMMUNITY SAFETY,Fees and Services,Public Health
Swale Borough Council,29UM,23/02/2022,1194596,40.00,RBS PURCHASING CARD (DT) - TESCO,                         ,COMMUNITY SAFETY,Fees and Services,Public Health
Swale Borough Council,29UM,23/02/2022,1194596,100.00,RBS PURCHASING CARD (DT) - HIGH STREET VOUCHERS,                         ,COMMUNITY SAFETY,Fees and Services,Public Health
Swale Borough Council,29UM,23/02/2022,1194596,30.00,RBS PURCHASING CARD (DT) - TESCO,                         ,COMMUNITY SAFETY,Fees and Services,Public Health
Swale Borough Council,29UM,23/02/2022,1194596,40.00,RBS PURCHASING CARD (DT) - TESCO,                         ,COMMUNITY SAFETY,Fees and Services,Public Health
Swale Borough Council,29UM,23/02/2022,1194596,40.00,RBS PURCHASING CARD (DT) - HIGH STREET VOUCHERS,                         ,COMMUNITY SAFETY,Fees and Services,Public Health
Swale Borough Council,29UM,23/02/2022,1194596,80.00,RBS PURCHASING CARD (DT) - ASDA,                         ,COMMUNITY SAFETY,Fees and Services,Public Health
Swale Borough Council,29UM,23/02/2022,1194596,200.00,RBS PURCHASING CARD (DT) - VOUCHER EXPRESS,                         ,COMMUNITY SAFETY,Fees and Services,Public Health
Swale Borough Council,29UM,23/02/2022,1194596,26.66,RBS PURCHASING CARD (DT) - TRAVELODGE,                         ,HOUSING SERVICES,B & B - Homelessness Landlord Payments,Housing
Swale Borough Council,29UM,23/02/2022,1194596,44.99,RBS PURCHASING CARD (DT) - EBAY,                         ,HOUSING SERVICES,General Maintenance,Housing
Swale Borough Council,29UM,23/02/2022,1194596,601.63,RBS PURCHASING CARD (DT) - TRAVELODGE,                         ,HOUSING SERVICES,B & B - Homelessness Landlord Payments,Housing
Swale Borough Council,29UM,23/02/2022,1194596,11.28,RBS PURCHASING CARD (DT) - TRAVELODGE,                         ,HOUSING SERVICES,B & B - Homelessness Landlord Payments,Housing
Swale Borough Council,29UM,23/02/2022,1194596,54.20,RBS PURCHASING CARD (DT) - TRAVELODGE,                         ,HOUSING SERVICES,B & B - Homelessness Landlord Payments,Housing
Swale Borough Council,29UM,23/02/2022,1194596,39.10,RBS PURCHASING CARD (DT) - TRAVELODGE,                         ,HOUSING SERVICES,B & B - Homelessness Landlord Payments,Housing
Swale Borough Council,29UM,23/02/2022,1194596,46.21,RBS PURCHASING CARD (DT) - TRAVELODGE,                         ,HOUSING SERVICES,B & B - Homelessness Landlord Payments,Housing
Swale Borough Council,29UM,23/02/2022,1194596,47.10,RBS PURCHASING CARD (DT) - TRAVELODGE,                         ,HOUSING SERVICES,B & B - Homelessness Landlord Payments,Housing
Swale Borough Council,29UM,23/02/2022,1194596,47.10,RBS PURCHASING CARD (DT) - TRAVELODGE,                         ,HOUSING SERVICES,B & B - Homelessness Landlord Payments,Housing
Swale Borough Council,29UM,23/02/2022,1194596,52.98,RBS PURCHASING CARD (DT) - RYANAIR,                         ,HOUSING SERVICES,General Travel Non Staff,Housing
Swale Borough Council,29UM,23/02/2022,1194596,30.21,RBS PURCHASING CARD (DT) - TRAVELODGE,                         ,HOUSING SERVICES,B & B - Homelessness Landlord Payments,Housing
Swale Borough Council,29UM,23/02/2022,1194597,10.75,RBS PURCHASING CARD (DT) - WICKES,,HOUSING SERVICES,Staying Put - Materials,Housing
Swale Borough Council,29UM,23/02/2022,1194599,-250.00,RBS PURCHASING CARD (DT) - KCC CST,                         ,SERVICE DELIVERY,Hire & Leases,Cultural and Related Services
Swale Borough Council,29UM,23/02/2022,1194378,1017.81,SECURITY PLUS + LIMITED,01325489                 ,CAR PARKS,Cash Security,Highway and Transport Services
Swale Borough Council,29UM,23/02/2022,1194378,7.03,SECURITY PLUS + LIMITED,01325489                 ,MULTISTOREY CAR PARK,Cash Security,Highway and Transport Services
Swale Borough Council,29UM,23/02/2022,1194480,19490.00,SHEPPEY DISTRICT SCOUTS,                         ,COMMUNITY SAFETY,Grants & Subscriptions,Cultural and Related Services
Swale Borough Council,29UM,23/02/2022,1194328,500.00,SHEPPEY UNIT SEA CADETS CORPS,                         ,COMMUNITY SAFETY,Grants & Subscriptions,Central Services to the Public
Swale Borough Council,29UM,23/02/2022,1194478,500.00,SITTINGBOURNE 55+ FELLOWSHIP,                         ,COMMUNITY SAFETY,Grants & Subscriptions,Central Services to the Public
Swale Borough Council,29UM,23/02/2022,1194315,485.50,SOLON SECURITY,03065075                 ,COMMUNITY SAFETY,Fees and Services,Environmental and Regulatory Services
Swale Borough Council,29UM,23/02/2022,1194505,2667.00,SOUND IN THE CITY LTD,                         ,ECONOMIC DEVELOPMENT,Payments in Year,Ledger/Suspense Codes
Swale Borough Council,29UM,23/02/2022,1194519,7192.30,SOUTH EAST BUILDING CO LTD,1786838                  ,HOUSING SERVICES,Housing Renovation Grants,Not used in this Structure
Swale Borough Council,29UM,23/02/2022,1194521,7136.44,SOUTH EAST BUILDING CO LTD,1786838                  ,HOUSING SERVICES,Housing Renovation Grants,Not used in this Structure
Swale Borough Council,29UM,23/02/2022,1194359,259.49,SOUTHERN COMMUNICATIONS LTD,1328040                  ,MKS ICT,Telephone,Corporate & Democratic Core
Swale Borough Council,29UM,23/02/2022,1194512,7307.04,ST MICHAEL'S GARAGE (KENT) LIMITED,                         ,ECONOMIC DEVELOPMENT,Payments in Year,Ledger/Suspense Codes
Swale Borough Council,29UM,23/02/2022,1194353,437.50,STORAGE KING,                         ,HOUSING SERVICES,Storage Expenses,Housing
Swale Borough Council,29UM,23/02/2022,1194354,266.67,STORAGE KING,                         ,HOUSING SERVICES,Storage Expenses,Housing
Swale Borough Council,29UM,23/02/2022,1194355,266.67,STORAGE KING,                         ,HOUSING SERVICES,Storage Expenses,Housing
Swale Borough Council,29UM,23/02/2022,1194356,266.67,STORAGE KING,                         ,HOUSING SERVICES,Storage Expenses,Housing
Swale Borough Council,29UM,23/02/2022,1194504,2667.00,SWEETS FOR MY SWEET LTD,                         ,ECONOMIC DEVELOPMENT,Payments in Year,Ledger/Suspense Codes
Swale Borough Council,29UM,23/02/2022,1194373,350.00,TELSOLUTIONS LIMITED,5076948                  ,REVENUE SERVICES,Fees and Services,Central Services to the Public
Swale Borough Council,29UM,23/02/2022,1194311,8250.00,VIVID RESOURCING LIMITED,06459262                 ,FINANCIAL SERVICES,Agency/Contract Staff,Internal Trading Cost Centres
Swale Borough Council,29UM,23/02/2022,1194369,9000.00,VIVID RESOURCING LIMITED,06459262                 ,PROPERTY SERVICES,Agency/Contract Staff,Internal Trading Cost Centres
Swale Borough Council,29UM,23/02/2022,1194513,10000.00,WALLER ASSOCIATES LIMITED,4027244                  ,ECONOMIC DEVELOPMENT,Payments in Year,Ledger/Suspense Codes
Swale Borough Council,29UM,23/02/2022,1194506,2667.00,WE CARE PHYSIOTHERAPY LTD,                         ,ECONOMIC DEVELOPMENT,Payments in Year,Ledger/Suspense Codes
Swale Borough Council,29UM,23/02/2022,1194203,1398.50,WEIGHTMANS LLP,OC326117                 ,CHIEF EXECUTIVE,Consultancy/Specialist Advice,Corporate & Democratic Core
Swale Borough Council,29UM,23/02/2022,1194483,900.00,WILLOW TREE HOME SOLUTIONS LTD,                         ,HOUSING SERVICES,Staying Put small repairs (contractors),Housing
Swale Borough Council,29UM,23/02/2022,1194461,35000.00,WONDE LTD,08645640                 ,COMMUNITY SAFETY,Fees and Services,Public Health
